Workbook

Sheet Instructions
C3: CONSTRUCTION LOGISTICS PLANNING TOOL
D7: REFERENCE INFORMATION
V9: K ENTER NAME BELOW K
D10: Version: | K10: v 1.0 | O10: Completed by:
D11: Last Updated: | K11: 2017-04-13 | O11: Shortcut:
D14: PURPOSE OF TOOL
D17: The purpose of the Tool is to help improve the creation and evaluation of CLPs by providing a number of standardised outputs. These graphical and tabular outputs provide detailed information to be used within a CLP from typical input data. The tool will help logistics managers feed reliable and relevant information into the CLP assisting them with creating this documentation.
D24: HOW TO USE CLP TOOL
D27: Data should only be input into the blue boxes available: | W27: DATA INPUT
D28: Use the | H28: button at the top of the sheet to expand columns for further data entry where required.
D29: The remainder of the sheet will populate accordingly based on the data input into the tool.
D31: Chosing Buildings or Infrastructure will update the names of the phases only. The spreadsheet functions the same no matter which is chosen.
D34: Ensure that Macros are enabled for the spreadsheet. For further information on how to use the excel based tool refer to the CLP Guidence Documentation.

Sheet Data Input
B2: CONSTRUCTION LOGISTICS PLANNING TOOL (INPUTS)
D3: USER INPUTS
D6: Development name: | E6: Developments Inc | L6: Building | M6: Infrastructure | N6: Renovation of existing building
D7: Landowner: | E7: HWWinning | L7: Site setup and demolition | M7: Site establishment, clearance & alterations | N7: New build
D8: Principal contractor: | E8: Sander & Sons | L8: Basement excavation and piling | M8: Excavation and foundations | N8: Vacant
D9: Site addess: | E9: 2 St John's Wood Road | L9: Sub-structure | M9: Sub-structure | N9: Structures to be demolished
D10: Site postcode: | E10: NW8 | L10: Super-structure | M10: Super-structure | N10: Structures to be retianed
D11: Freight infrastructure postcode: | E11: NW1 8NS | L11: Cladding | M11: Services & systems installation
D12: Type of project: | E12: Building
D13: Type of construction: | E13: New build
D14: State of current site: | E14: Structures to be demolished
D15: Number of working days per month: | E15: 22 | K15: Buildings | L15: Fit-out, testing and commissioning | M15: Fit-out, testing and commissioning
D17: Gross floor area (sqm) | E17: Residential | F17: A1 Retail | G17: A3 Retail | H17: A5 Retail | I17: B1 Office | J17: B2 General industry | K17: B8 Storage and distribution | L17: D1 Residential institutions | M17: D2 Leisure | N17: Hotel | O17: Other | P17: Total
D18: New/additional floor area | E18: 18000 | F18: 2200 | I18: 15000 | M18: 3600 | O18: 3900 | P18: =SUM(E18:O18) -> 42700
D19: Refurbished floor area | P19: =SUM(E19:O19) -> 0
D20: Total | E20: =SUM(E18:E19) -> 18000 | F20: =SUM(F18:F19) -> 2200 | G20: 0 | H20: 0 | I20: 15000 | J20: 0 | K20: 0 | L20: 0 | M20: 3600 | N20: 0 | O20: 3900 | P20: =SUM(E18:O19) -> 42700
D22: Construction stage | E22: Schedule (mmm/yyyy)
E23: Start month | F23: End month
C24: =DATE(YEAR(E24) - 5, MONTH(E24), DAY(E24)) -> 2020-04-01 | D24: =IF($E$12="Building", $L7, IF($E$12="Infrastructure", $M7, "Select Project Type Above")) -> Site setup and demolition | E24: 2025-04-01 | F24: 2025-11-01
C25: =F29 -> 2028-08-01 | D25: =IF($E$12="Building", $L8, IF($E$12="Infrastructure", $M8, "Select Project Type Above")) -> Basement excavation and piling | E25: 2025-11-01 | F25: 2026-06-01 | G25: Axis Scale | H25: X
D26: =IF($E$12="Building", $L9, IF($E$12="Infrastructure", $M9, "Select Project Type Above")) -> Sub-structure | E26: 2026-04-01 | F26: 2027-03-01 | G26: Min | H26: =EDATE(E24, -1) -> 45717
D27: =IF($E$12="Building", $L10, IF($E$12="Infrastructure", $M10, "Select Project Type Above")) -> Super-structure | E27: 2027-02-01 | F27: 2027-10-01 | G27: Max | H27: =EDATE(F29, 3) -> 47058
C28: 2012-07-10 | D28: =IF($E$12="Building", $L11, IF($E$12="Infrastructure", $M11, "Select Project Type Above")) -> Cladding | E28: 2027-06-01 | F28: 2028-01-01 | G28: Tick | H28: 100
C29: 41100 | D29: =IF($E$12="Building", $L15, IF($E$12="Infrastructure", $M15, "Select Project Type Above")) -> Fit-out, testing and commissioning | E29: 2027-10-01 | F29: 2028-08-01
D31: Construction stage | E31: Schedule | I31: =E24 -> 2025-04-01 | J31: =EDATE(I31,1) -> 2025-05-01 | K31: =EDATE(J31,1) -> 2025-06-01 | L31: 2025-07-01 | M31: 2025-08-01 | N31: 2025-09-01 | O31: 2025-10-01 | P31: 2025-11-01 | Q31: 2025-12-01 | R31: 2026-01-01 | S31: 2026-02-01 | T31: 2026-03-01 | U31: 2026-04-01 | V31: 2026-05-01 | W31: 2026-06-01 | X31: 2026-07-01 | Y31: 2026-08-01 | Z31: 2026-09-01 | AA31: 2026-10-01 | AB31: 2026-11-01 | AC31: 2026-12-01 | AD31: 2027-01-01 | AE31: 2027-02-01 | AF31: 2027-03-01 | AG31: 2027-04-01 | AH31: 2027-05-01 | AI31: 2027-06-01 | AJ31: 2027-07-01 | AK31: 2027-08-01 | AL31: 2027-09-01 | AM31: 2027-10-01 | AN31: =EDATE(AM31,1) -> 2027-11-01 | AO31: 2027-12-01 | AP31: 2028-01-01 | AQ31: 2028-02-01 | AR31: 2028-03-01 | AS31: 2028-04-01 | AT31: 2028-05-01 | AU31: 2028-06-01 | AV31: 2028-07-01 | AW31: 2028-08-01 | AX31: 2028-09-01 | AY31: 2028-10-01 | AZ31: 2028-11-01 | BA31: 2028-12-01 | BB31: 2029-01-01 | BC31: 2029-02-01 | BD31: 2029-03-01 | BE31: 2029-04-01 | BF31: 2029-05-01 | BG31: 2029-06-01 | BH31: 2029-07-01 | BI31: 2029-08-01 | BJ31: 2029-09-01 | BK31: 2029-10-01 | BL31: 2029-11-01 | BM31: 2029-12-01 | BN31: 2030-01-01 | BO31: 2030-02-01 | BP31: 2030-03-01 | BQ31: 2030-04-01 | BR31: 2030-05-01 | BS31: 2030-06-01 | BT31: 2030-07-01 | BU31: 2030-08-01 | BV31: 2030-09-01 | BW31: 2030-10-01 | BX31: 2030-11-01 | BY31: 2030-12-01 | BZ31: 2031-01-01 | CA31: 2031-02-01 | CB31: 2031-03-01 | CC31: Total
C32: Duration (Number of days) | E32: Start month (mmm/yyyy) | F32: End month (mmm/yyyy) | G32: Duration (Number of months) | H32: Month number | I32: 1 | J32: 2 | K32: 3 | L32: 4 | M32: 5 | N32: 6 | O32: 7 | P32: 8 | Q32: 9 | R32: 10 | S32: 11 | T32: 12 | U32: 13 | V32: 14 | W32: 15 | X32: 16 | Y32: 17 | Z32: 18 | AA32: 19 | AB32: 20 | AC32: 21 | AD32: 22 | AE32: 23 | AF32: 24 | AG32: 25 | AH32: 26 | AI32: 27 | AJ32: 28 | AK32: 29 | AL32: 30 | AM32: 31 | AN32: 32 | AO32: 33 | AP32: 34 | AQ32: 35 | AR32: 36 | AS32: 37 | AT32: 38 | AU32: 39 | AV32: 40 | AW32: 41 | AX32: 42 | AY32: 43 | AZ32: 44 | BA32: 45 | BB32: 46 | BC32: 47 | BD32: 48 | BE32: 49 | BF32: 50 | BG32: 51 | BH32: 52 | BI32: 53 | BJ32: 54 | BK32: 55 | BL32: 56 | BM32: 57 | BN32: 58 | BO32: 59 | BP32: 60 | BQ32: 61 | BR32: 62 | BS32: 63 | BT32: 64 | BU32: 65 | BV32: 66 | BW32: 67 | BX32: 68 | BY32: 69 | BZ32: 70 | CA32: 71 | CB32: 72
C33: =F33-E33 -> 214 | D33: =$D$24 -> Site setup and demolition | E33: =E24 -> 2025-04-01 | F33: 2025-11-01 | G33: =(YEAR(F33)-YEAR(E33))*12+MONTH(F33)-MONTH(E33)+1 -> 8 | H33: =1 -> 1 | I33: 550 | J33: 550 | K33: 550 | L33: 880 | M33: 880 | N33: 880 | O33: 880 | P33: 700 | CC33: =SUM(I33:CB33) -> 5870
C34: 212 | D34: =$D$25 -> Basement excavation and piling | E34: 2025-11-01 | F34: 2026-06-01 | G34: 8 | H34: =IF(E34>=$E$33,(YEAR(E34)-YEAR($E$33))*12+MONTH(E34)-MONTH($E$33)+1,0) -> 8 | P34: 400 | Q34: 880 | R34: 990 | S34: 990 | T34: 990 | U34: 660 | V34: 660 | W34: 550 | CC34: 6120
C35: 334 | D35: =$D$26 -> Sub-structure | E35: 2026-04-01 | F35: 2027-03-01 | G35: 12 | H35: =IF(E35>=$E$33,(YEAR(E35)-YEAR($E$33))*12+MONTH(E35)-MONTH($E$33)+1,0) -> 13 | U35: 330 | V35: 330 | W35: 440 | X35: 990 | Y35: 990 | Z35: 990 | AA35: 770 | AB35: 770 | AC35: 770 | AD35: 1540 | AE35: 1000 | AF35: 900 | CC35: 9820
C36: 242 | D36: =$D$27 -> Super-structure | E36: 2027-02-01 | F36: 2027-10-01 | G36: 9 | H36: =IF(E36>=$E$33,(YEAR(E36)-YEAR($E$33))*12+MONTH(E36)-MONTH($E$33)+1,0) -> 23 | AE36: 540 | AF36: 540 | AG36: 1980 | AH36: 1980 | AI36: 1000 | AJ36: 1000 | AK36: 500 | AL36: 500 | AM36: 500 | CC36: 8540
C37: 214 | D37: =$D$28 -> Cladding | E37: 2027-06-01 | F37: 2028-01-01 | G37: 8 | H37: =IF(E37>=$E$33,(YEAR(E37)-YEAR($E$33))*12+MONTH(E37)-MONTH($E$33)+1,0) -> 27 | AI37: 980 | AJ37: 1050 | AK37: 1000 | AL37: 900 | AM37: 1100 | AN37: 1100 | AO37: 1000 | AP37: 500 | CC37: 7630
C38: 305 | D38: =$D$29 -> Fit-out, testing and commissioning | E38: 2027-10-01 | F38: 2028-08-01 | G38: 11 | H38: =IF(E38>=$E$33,(YEAR(E38)-YEAR($E$33))*12+MONTH(E38)-MONTH($E$33)+1,0) -> 31 | AM38: 500 | AN38: 500 | AO38: 500 | AP38: 1000 | AQ38: 1000 | AR38: 1000 | AS38: 1870 | AT38: 1870 | AU38: 1540 | AV38: 1540 | AW38: 770 | CC38: 12090
H39: Monthly total | I39: =SUM(I33:I38) -> 550 | J39: 550 | K39: 550 | L39: 880 | M39: 880 | N39: 880 | O39: 880 | P39: 1100 | Q39: 880 | R39: 990 | S39: 990 | T39: 990 | U39: 990 | V39: 990 | W39: 990 | X39: 990 | Y39: 990 | Z39: 990 | AA39: 770 | AB39: 770 | AC39: 770 | AD39: 1540 | AE39: 1540 | AF39: 1440 | AG39: 1980 | AH39: 1980 | AI39: 1980 | AJ39: 2050 | AK39: 1500 | AL39: 1400 | AM39: =SUM(AM33:AM38) -> 2100 | AN39: 1600 | AO39: 1500 | AP39: 1500 | AQ39: 1000 | AR39: 1000 | AS39: 1870 | AT39: 1870 | AU39: 1540 | AV39: 1540 | AW39: 770 | AX39: =SUM(AX33:AX38) -> 0 | AY39: =SUM(AY33:AY38) -> 0 | AZ39: =SUM(AZ33:AZ38) -> 0 | BA39: 0 | BB39: 0 | BC39: 0 | BD39: 0 | BE39: 0 | BF39: =SUM(BF33:BF38) -> 0 | BG39: =SUM(BG33:BG38) -> 0 | BH39: =SUM(BH33:BH38) -> 0 | BI39: =SUM(BI33:BI38) -> 0 | BJ39: =SUM(BJ33:BJ38) -> 0 | BK39: 0 | BL39: 0 | BM39: 0 | BN39: 0 | BO39: 0 | BP39: 0 | BQ39: 0 | BR39: 0 | BS39: 0 | BT39: 0 | BU39: 0 | BV39: 0 | BW39: 0 | BX39: 0 | BY39: 0 | BZ39: 0 | CA39: 0 | CB39: 0 | CC39: =SUM(CC33:CC38) -> 50070
H40: Average daily total | I40: =I39/Days -> 25 | J40: 25 | K40: 25 | L40: 40 | M40: 40 | N40: 40 | O40: 40 | P40: 50 | Q40: 40 | R40: 45 | S40: 45 | T40: 45 | U40: 45 | V40: 45 | W40: 45 | X40: 45 | Y40: 45 | Z40: 45 | AA40: 35 | AB40: 35 | AC40: 35 | AD40: 70 | AE40: 70 | AF40: 65.45454545 | AG40: 90 | AH40: 90 | AI40: 90 | AJ40: 93.18181818 | AK40: 68.18181818 | AL40: 63.63636364 | AM40: =AM39/Days -> 95.45454545 | AN40: 72.72727273 | AO40: 68.18181818 | AP40: 68.18181818 | AQ40: 45.45454545 | AR40: 45.45454545 | AS40: 85 | AT40: 85 | AU40: 70 | AV40: 70 | AW40: 35 | AX40: 0 | AY40: 0 | AZ40: 0 | BA40: 0 | BB40: 0 | BC40: 0 | BD40: 0 | BE40: 0 | BF40: =BF39/Days -> 0 | BG40: =BG39/Days -> 0 | BH40: =BH39/Days -> 0 | BI40: =BI39/Days -> 0 | BJ40: =BJ39/Days -> 0 | BK40: 0 | BL40: 0 | BM40: 0 | BN40: 0 | BO40: 0 | BP40: 0 | BQ40: 0 | BR40: 0 | BS40: 0 | BT40: 0 | BU40: 0 | BV40: 0 | BW40: 0 | BX40: 0 | BY40: 0 | BZ40: 0 | CA40: 0 | CB40: 0 | CC40: =CC39/Days -> 2275.909091
D42: Construction stage | E42: Vehicle type
E43: ≤ 3.5t | F43: 3.5t - 7.5t | G43: ≥ 7.5t | H43: Total
D44: =$D$24 -> Site setup and demolition | E44: 0.1 | F44: 0.15 | G44: 0.75 | H44: =SUM(E44:G44) -> 1
D45: =$D$25 -> Basement excavation and piling | E45: 0.28 | F45: 0.22 | G45: 0.5 | H45: 1
D46: =$D$26 -> Sub-structure | E46: 0.22 | F46: 0.28 | G46: 0.5 | H46: 1
D47: =$D$27 -> Super-structure | E47: 0.13 | F47: 0.12 | G47: 0.75 | H47: 1
D48: =$D$28 -> Cladding | E48: 0.15 | F48: 0.1 | G48: 0.75 | H48: 1
D49: =$D$29 -> Fit-out, testing and commissioning | E49: 0.8 | F49: 0.14 | G49: 0.06 | H49: 1
D51: Construction stage | E51: Input hourly distribution of vehicles on typical day
E52: 00:00:00 | F52: 01:00:00 | G52: 02:00:00 | H52: 03:00:00 | I52: 04:00:00 | J52: 05:00:00 | K52: 06:00:00 | L52: 07:00:00 | M52: 08:00:00 | N52: 09:00:00 | O52: 10:00:00 | P52: 11:00:00 | Q52: 12:00:00 | R52: 13:00:00 | S52: 14:00:00 | T52: 15:00:00 | U52: 16:00:00 | V52: 17:00:00 | W52: 18:00:00 | X52: 19:00:00 | Y52: 20:00:00 | Z52: 21:00:00 | AA52: 22:00:00 | AB52: 23:00:00 | AC52: Total
D53: =$D$24 -> Site setup and demolition | E53: 0 | F53: 0 | G53: 0 | H53: 0 | I53: 0 | J53: 0 | K53: 0.05 | L53: 0.1 | M53: 0.25 | N53: 0.25 | O53: 0.15 | P53: 0.1 | Q53: 0.05 | R53: 0.01 | S53: 0.01 | T53: 0.01 | U53: 0.01 | V53: 0.01 | W53: 0 | X53: 0 | Y53: 0 | Z53: 0 | AA53: 0 | AB53: 0 | AC53: =SUM(E53:AB53) -> 1
D54: =$D$25 -> Basement excavation and piling | E54: 0 | F54: 0 | G54: 0 | H54: 0 | I54: 0 | J54: 0 | K54: 0.05 | L54: 0.1 | M54: 0.25 | N54: 0.25 | O54: 0.15 | P54: 0.1 | Q54: 0.05 | R54: 0.01 | S54: 0.01 | T54: 0.01 | U54: 0.01 | V54: 0.01 | W54: 0 | X54: 0 | Y54: 0 | Z54: 0 | AA54: 0 | AB54: 0 | AC54: 1
D55: =$D$26 -> Sub-structure | E55: 0 | F55: 0 | G55: 0 | H55: 0 | I55: 0 | J55: 0 | K55: 0.05 | L55: 0.1 | M55: 0.2 | N55: 0.2 | O55: 0.2 | P55: 0.1 | Q55: 0.05 | R55: 0.02 | S55: 0.02 | T55: 0.02 | U55: 0.02 | V55: 0.02 | W55: 0 | X55: 0 | Y55: 0 | Z55: 0 | AA55: 0 | AB55: 0 | AC55: 1
D56: =$D$27 -> Super-structure | E56: 0 | F56: 0 | G56: 0 | H56: 0 | I56: 0 | J56: 0.01 | K56: 0.04 | L56: 0.05 | M56: 0.05 | N56: 0.06 | O56: 0.08 | P56: 0.08 | Q56: 0.1 | R56: 0.13 | S56: 0.1 | T56: 0.12 | U56: 0.1 | V56: 0.08 | W56: 0 | X56: 0 | Y56: 0 | Z56: 0 | AA56: 0 | AB56: 0 | AC56: 1
D57: =$D$28 -> Cladding | E57: 0 | F57: 0 | G57: 0 | H57: 0 | I57: 0 | J57: 0.02 | K57: 0.03 | L57: 0.1 | M57: 0.15 | N57: 0.25 | O57: 0.2 | P57: 0.1 | Q57: 0.05 | R57: 0.02 | S57: 0.02 | T57: 0.02 | U57: 0.02 | V57: 0.02 | W57: 0 | X57: 0 | Y57: 0 | Z57: 0 | AA57: 0 | AB57: 0 | AC57: 1
D58: =$D$29 -> Fit-out, testing and commissioning | E58: 0 | F58: 0 | G58: 0 | H58: 0 | I58: 0 | J58: 0.01 | K58: 0.04 | L58: 0.08 | M58: 0.08 | N58: 0.06 | O58: 0.05 | P58: 0.04 | Q58: 0.05 | R58: 0.05 | S58: 0.07 | T58: 0.2 | U58: 0.25 | V58: 0.02 | W58: 0 | X58: 0 | Y58: 0 | Z58: 0 | AA58: 0 | AB58: 0 | AC58: 1
D60: EXPECTED NUMBER OF VEHICLES | J60: CONSTRUCTION PROGRAMME OVERVIEW
D63: Construction stage | E63: ="No. of vehicles in peak month ("&TEXT(OFFSET($H$32,-1,MATCH(MAX($I$39:$CB$39),$I$39:$CB$39,0)),"mmm-yyyy")&")" -> No. of vehicles in peak month (Oct-2027)
E64: ≤ 3.5t | F64: 3.5t - 7.5t | G64: ≥ 7.5t | H64: Total
D65: =$D$24 -> Site setup and demolition | E65: =H65*E44 -> 0 | F65: =H65*F44 -> 0 | G65: =H65*G44 -> 0 | H65: =E87 -> 0
D66: =$D$25 -> Basement excavation and piling | E66: 0 | F66: 0 | G66: 0 | H66: 0
D67: =$D$26 -> Sub-structure | E67: 0 | F67: 0 | G67: 0 | H67: 0
D68: =$D$27 -> Super-structure | E68: 65 | F68: 60 | G68: 375 | H68: 500
D69: =$D$28 -> Cladding | E69: 165 | F69: 110 | G69: 825 | H69: 1100
D70: =$D$29 -> Fit-out, testing and commissioning | E70: 400 | F70: 70 | G70: 30 | H70: 500
D71: Total | E71: =SUM(E65:E70) -> 630 | F71: =SUM(F65:F70) -> 240 | G71: =SUM(G65:G70) -> 1230 | H71: =SUM(E65:G70) -> 2100
D73: Construction stage | E73: Vehicle type in peak of individual construction phase
E74: ≤ 3.5t | F74: 3.5t - 7.5t | G74: ≥ 7.5t | H74: Total
D75: =$D$24 -> Site setup and demolition | E75: =H75*E44 -> 110 | F75: =H75*F44 -> 165 | G75: =H75*G44 -> 825 | H75: =E97 -> 1100
D76: =$D$25 -> Basement excavation and piling | E76: 308 | F76: 242 | G76: 550 | H76: 1100
D77: =$D$26 -> Sub-structure | E77: 338.8 | F77: 431.2 | G77: 770 | H77: 1540
D78: =$D$27 -> Super-structure | E78: 273 | F78: 252 | G78: 1575 | H78: 2100
D79: =$D$28 -> Cladding | E79: 315 | F79: 210 | G79: 1575 | H79: 2100
D80: =$D$29 -> Fit-out, testing and commissioning | E80: 1680 | F80: 294 | G80: 126 | H80: 2100
D82: EXPECTED SCHEDULE OF VEHICLES
D85: Construction stage | E85: ="Number of vehicles in peak month ("&TEXT(OFFSET($H$32,-1,MATCH(MAX($I$39:$CB$39),$I$39:$CB$39,0)),"mmm-yyyy")&")" -> Number of vehicles in peak month (Oct-2027) | G85: 00:00:00 | H85: 01:00:00 | I85: 02:00:00 | J85: 03:00:00 | K85: 04:00:00 | L85: 05:00:00 | M85: 06:00:00 | N85: 07:00:00 | O85: 08:00:00 | P85: 09:00:00 | Q85: 10:00:00 | R85: 11:00:00 | S85: 12:00:00 | T85: 13:00:00 | U85: 14:00:00 | V85: 15:00:00 | W85: 16:00:00 | X85: 17:00:00 | Y85: 18:00:00 | Z85: 19:00:00 | AA85: 20:00:00 | AB85: 21:00:00 | AC85: 22:00:00 | AD85: 23:00:00
E86: Total | F86: Avg daily tot
D87: =$D$24 -> Site setup and demolition | E87: =OFFSET($H$32,1,MATCH(MAX($I$39:$CB$39),$I$39:$CB$39,0)) -> 0 | F87: =IFERROR(E87/Days,"") -> 0 | G87: =$F$87*E53 -> 0 | H87: 0 | I87: 0 | J87: 0 | K87: 0 | L87: 0 | M87: 0 | N87: 0 | O87: 0 | P87: 0 | Q87: 0 | R87: 0 | S87: 0 | T87: 0 | U87: 0 | V87: 0 | W87: 0 | X87: 0 | Y87: 0 | Z87: 0 | AA87: 0 | AB87: 0 | AC87: 0 | AD87: 0
D88: =$D$25 -> Basement excavation and piling | E88: =OFFSET($H$32,2,MATCH(MAX($I$39:$CB$39),$I$39:$CB$39,0)) -> 0 | F88: 0 | G88: =$F$88*E54 -> 0 | H88: 0 | I88: 0 | J88: 0 | K88: 0 | L88: 0 | M88: 0 | N88: 0 | O88: 0 | P88: 0 | Q88: 0 | R88: 0 | S88: 0 | T88: 0 | U88: 0 | V88: 0 | W88: 0 | X88: 0 | Y88: 0 | Z88: 0 | AA88: 0 | AB88: 0 | AC88: 0 | AD88: 0
D89: =$D$26 -> Sub-structure | E89: =OFFSET($H$32,3,MATCH(MAX($I$39:$CB$39),$I$39:$CB$39,0)) -> 0 | F89: 0 | G89: =$F$89*E55 -> 0 | H89: 0 | I89: 0 | J89: 0 | K89: 0 | L89: 0 | M89: 0 | N89: 0 | O89: 0 | P89: 0 | Q89: 0 | R89: 0 | S89: 0 | T89: 0 | U89: 0 | V89: 0 | W89: 0 | X89: 0 | Y89: 0 | Z89: 0 | AA89: 0 | AB89: 0 | AC89: 0 | AD89: 0
D90: =$D$27 -> Super-structure | E90: =OFFSET($H$32,4,MATCH(MAX($I$39:$CB$39),$I$39:$CB$39,0)) -> 500 | F90: =IFERROR(E90/Days,"") -> 22.72727273 | G90: =$F$90*E56 -> 0 | H90: 0 | I90: 0 | J90: 0 | K90: 0 | L90: 0.2272727273 | M90: 0.9090909091 | N90: 1.136363636 | O90: 1.136363636 | P90: 1.363636364 | Q90: 1.818181818 | R90: 1.818181818 | S90: 2.272727273 | T90: 2.954545455 | U90: 2.272727273 | V90: 2.727272727 | W90: 2.272727273 | X90: 1.818181818 | Y90: 0 | Z90: 0 | AA90: 0 | AB90: 0 | AC90: 0 | AD90: 0
D91: =$D$28 -> Cladding | E91: =OFFSET($H$32,5,MATCH(MAX($I$39:$CB$39),$I$39:$CB$39,0)) -> 1100 | F91: 50 | G91: =$F$91*E57 -> 0 | H91: 0 | I91: 0 | J91: 0 | K91: 0 | L91: 1 | M91: 1.5 | N91: 5 | O91: 7.5 | P91: 12.5 | Q91: 10 | R91: 5 | S91: 2.5 | T91: 1 | U91: 1 | V91: 1 | W91: 1 | X91: 1 | Y91: 0 | Z91: 0 | AA91: 0 | AB91: 0 | AC91: 0 | AD91: 0
D92: =$D$29 -> Fit-out, testing and commissioning | E92: =OFFSET($H$32,6,MATCH(MAX($I$39:$CB$39),$I$39:$CB$39,0)) -> 500 | F92: 22.72727273 | G92: =$F$92*E58 -> 0 | H92: 0 | I92: 0 | J92: 0 | K92: 0 | L92: 0.2272727273 | M92: 0.9090909091 | N92: 1.818181818 | O92: 1.818181818 | P92: 1.363636364 | Q92: 1.136363636 | R92: 0.9090909091 | S92: 1.136363636 | T92: 1.136363636 | U92: 1.590909091 | V92: 4.545454545 | W92: 5.681818182 | X92: 0.4545454545 | Y92: 0 | Z92: 0 | AA92: 0 | AB92: 0 | AC92: 0 | AD92: 0
D93: Total | E93: =SUM(E87:E92) -> 2100 | F93: =SUM(F87:F92) -> 95.45454545 | G93: =SUM(G87:G92) -> 0 | H93: 0 | I93: 0 | J93: 0 | K93: 0 | L93: 1.454545455 | M93: 3.318181818 | N93: 7.954545455 | O93: 10.45454545 | P93: 15.22727273 | Q93: 12.95454545 | R93: 7.727272727 | S93: 5.909090909 | T93: 5.090909091 | U93: 4.863636364 | V93: 8.272727273 | W93: 8.954545455 | X93: 3.272727273 | Y93: 0 | Z93: 0 | AA93: 0 | AB93: 0 | AC93: 0 | AD93: 0
G94: =IFERROR(60/G93, NA()) ->  | H94: =IFERROR(60/H93, NA()) ->  | I94: =IFERROR(60/I93, NA()) ->  | K94: =IFERROR(60/K93, NA()) ->  | L94: =IFERROR(60/L93, NA()) -> 41.25 | M94: =IFERROR(60/M93, NA()) -> 18.08219178 | N94: =IFERROR(60/N93, NA()) -> 7.542857143 | O94: =IFERROR(60/O93, NA()) -> 5.739130435 | P94: =IFERROR(60/P93, NA()) -> 3.940298507 | Q94: 4.631578947 | R94: =IFERROR(60/R93, NA()) -> 7.764705882 | S94: =IFERROR(60/S93, NA()) -> 10.15384615 | T94: =IFERROR(60/T93, NA()) -> 11.78571429 | U94: =IFERROR(60/U93, NA()) -> 12.3364486 | V94: =IFERROR(60/V93, NA()) -> 7.252747253 | W94: =IFERROR(60/W93, NA()) -> 6.700507614 | X94: =IFERROR(60/X93, NA()) -> 18.33333333 | Y94: =IFERROR(60/Y93, NA()) -> 
D95: Construction stage | E95: Number of vehicles in peak of phase (including possible overlap of subsequent phases) | G95: 00:00:00 | H95: 01:00:00 | I95: 02:00:00 | J95: 03:00:00 | K95: 04:00:00 | L95: 05:00:00 | M95: 06:00:00 | N95: 07:00:00 | O95: 08:00:00 | P95: 09:00:00 | Q95: 10:00:00 | R95: 11:00:00 | S95: 12:00:00 | T95: 13:00:00 | U95: 14:00:00 | V95: 15:00:00 | W95: 16:00:00 | X95: 17:00:00 | Y95: 18:00:00 | Z95: 19:00:00 | AA95: 20:00:00 | AB95: 21:00:00 | AC95: 22:00:00 | AD95: 23:00:00
E96: Total | F96: Avg daily tot
D97: =$D$24 -> Site setup and demolition | E97: =MAX(OFFSET($H$32,7,$H33,1,COUNT(I33:CB33))) -> 1100 | F97: =IFERROR(E97/Days,"") -> 50 | G97: =$F$97*E53 -> 0 | H97: 0 | I97: 0 | J97: 0 | K97: 0 | L97: 0 | M97: 2.5 | N97: 5 | O97: 12.5 | P97: 12.5 | Q97: 7.5 | R97: 5 | S97: 2.5 | T97: 0.5 | U97: 0.5 | V97: 0.5 | W97: 0.5 | X97: 0.5 | Y97: 0 | Z97: 0 | AA97: 0 | AB97: 0 | AC97: 0 | AD97: 0
D98: =$D$25 -> Basement excavation and piling | E98: 1100 | F98: 50 | G98: =$F$98*E54 -> 0 | H98: 0 | I98: 0 | J98: 0 | K98: 0 | L98: 0 | M98: 2.5 | N98: 5 | O98: 12.5 | P98: 12.5 | Q98: 7.5 | R98: 5 | S98: 2.5 | T98: 0.5 | U98: 0.5 | V98: 0.5 | W98: 0.5 | X98: 0.5 | Y98: 0 | Z98: 0 | AA98: 0 | AB98: 0 | AC98: 0 | AD98: 0
D99: =$D$26 -> Sub-structure | E99: 1540 | F99: 70 | G99: =$F$99*E55 -> 0 | H99: 0 | I99: 0 | J99: 0 | K99: 0 | L99: 0 | M99: 3.5 | N99: 7 | O99: 14 | P99: 14 | Q99: 14 | R99: 7 | S99: 3.5 | T99: 1.4 | U99: 1.4 | V99: 1.4 | W99: 1.4 | X99: 1.4 | Y99: 0 | Z99: 0 | AA99: 0 | AB99: 0 | AC99: 0 | AD99: 0
D100: =$D$27 -> Super-structure | E100: 2100 | F100: 95.45454545 | G100: =$F$100*E56 -> 0 | H100: 0 | I100: 0 | J100: 0 | K100: 0 | L100: 0.9545454545 | M100: 3.818181818 | N100: 4.772727273 | O100: 4.772727273 | P100: 5.727272727 | Q100: 7.636363636 | R100: 7.636363636 | S100: 9.545454545 | T100: 12.40909091 | U100: 9.545454545 | V100: 11.45454545 | W100: 9.545454545 | X100: 7.636363636 | Y100: 0 | Z100: 0 | AA100: 0 | AB100: 0 | AC100: 0 | AD100: 0
D101: =$D$28 -> Cladding | E101: 2100 | F101: 95.45454545 | G101: =$F$101*E57 -> 0 | H101: 0 | I101: 0 | J101: 0 | K101: 0 | L101: 1.909090909 | M101: 2.863636364 | N101: 9.545454545 | O101: 14.31818182 | P101: 23.86363636 | Q101: 19.09090909 | R101: 9.545454545 | S101: 4.772727273 | T101: 1.909090909 | U101: 1.909090909 | V101: 1.909090909 | W101: 1.909090909 | X101: 1.909090909 | Y101: 0 | Z101: 0 | AA101: 0 | AB101: 0 | AC101: 0 | AD101: 0
D102: =$D$29 -> Fit-out, testing and commissioning | E102: 2100 | F102: 95.45454545 | G102: =$F$102*E58 -> 0 | H102: 0 | I102: 0 | J102: 0 | K102: 0 | L102: 0.9545454545 | M102: 3.818181818 | N102: 7.636363636 | O102: 7.636363636 | P102: 5.727272727 | Q102: 4.772727273 | R102: 3.818181818 | S102: 4.772727273 | T102: 4.772727273 | U102: 6.681818182 | V102: 19.09090909 | W102: 23.86363636 | X102: 1.909090909 | Y102: 0 | Z102: 0 | AA102: 0 | AB102: 0 | AC102: 0 | AD102: 0
B104: Chart labels
D105: Chart | E105: Titles | F105: Xaxis | G105: Y axis left | H105: y axis right
D106: Programme | E106: Construction programme
D107: Vehicle type | E107: Number of vehicles by types during peak of phase | F107: Phase of construction | G107: Number of vehicles
D108: Vehcile Programme | E108: Total number of vehicles through construction programme | F108: Month beginning | G108: Number of vehicles per month | H108: Number of vehicles per day
D109: Hourly | E109: ="Number of vehicles in peak month ("&TEXT(OFFSET($H$32,-1,MATCH(MAX($I$39:$CB$39),$I$39:$CB$39,0)),"mmm-yyyy")&")" -> Number of vehicles in peak month (Oct-2027) | F109: Hour beginning | G109: Number of vehicles per hour | H109: Estimated minutes between vehicle arrivals
D112: Construction stage | E112: Start | F112: End
D113: =$D$24 -> Site setup and demolition | E113: =E24 -> 2025-04-01 | F113: 2025-11-01
D114: =$D$25 -> Basement excavation and piling | E114: 2025-11-01 | F114: 2026-06-01
D115: =$D$26 -> Sub-structure | E115: 2026-04-01 | F115: 2027-03-01
D116: =$D$27 -> Super-structure | E116: 2027-02-01 | F116: 2027-10-01
D117: =$D$28 -> Cladding | E117: 2027-06-01 | F117: 2028-01-01
D118: =$D$29 -> Fit-out, testing and commissioning | E118: 2027-10-01 | F118: 2028-08-01
D120: Construction stage | E120: Period of stage | F120: No. of trips (monthly) | G120: Peak no. of trips (daily)
D121: =$D$24 -> Site setup and demolition | E121: ="Q"&ROUNDUP(MONTH($E24)/3,0)&" "&YEAR($E24)&" - Q"&ROUNDUP(MONTH($F24)/3,0)&" "&YEAR($F24) -> Q2 2025 - Q4 2025 | F121: =MAX($I33:$CB33) -> 880 | G121: =F121/Days -> 40
D122: =$D$25 -> Basement excavation and piling | E122: Q4 2025 - Q2 2026 | F122: 990 | G122: 45
D123: =$D$26 -> Sub-structure | E123: Q2 2026 - Q1 2027 | F123: 1540 | G123: 70
D124: =$D$27 -> Super-structure | E124: Q1 2027 - Q4 2027 | F124: 1980 | G124: 90
D125: =$D$28 -> Cladding | E125: Q2 2027 - Q1 2028 | F125: 1100 | G125: 50
D126: =$D$29 -> Fit-out, testing and commissioning | E126: Q4 2027 - Q3 2028 | F126: 1870 | G126: 85
D127: Peak period of construction | E127: ="Q"&ROUNDUP(MONTH((EDATE(I31,((MATCH(F127,I39:CB39,0))-1))))/3,0)&" "&YEAR((EDATE(I31,((MATCH(F127,I39:CB39,0))-1))))&" - Q"&ROUNDUP(MONTH(EDATE(((EDATE(I31,((MATCH(F127,I39:CB39,0))-1)))-1),COUNTIF(I39:CB39,F127)))/3,0)&" "&YEAR(EDATE(((EDATE(I31,((MATCH(F127,I39:CB39,0))-1)))-1),COUNTIF(I39:CB39,F127))) -> Q4 2027 - Q4 2027 | F127: 2100 | G127: 95.45454545
D129: Construction stage | E129: Period of stage | F129: No. of trips (monthly) | G129: Peak no. of trips (daily)
D130: =$D$24 -> Site setup and demolition | E130: ="Q"&ROUNDUP(MONTH($E33)/3,0)&" "&YEAR($E33)&" - Q"&ROUNDUP(MONTH($F33)/3,0)&" "&YEAR($F33) -> Q2 2025 - Q4 2025 | F130: =H75 -> 1100 | G130: =F130/Days -> 50
D131: =$D$25 -> Basement excavation and piling | E131: Q4 2025 - Q2 2026 | F131: 1100 | G131: 50
D132: =$D$26 -> Sub-structure | E132: Q2 2026 - Q1 2027 | F132: 1540 | G132: 70
D133: =$D$27 -> Super-structure | E133: Q1 2027 - Q4 2027 | F133: 2100 | G133: 95.45454545
D134: =$D$28 -> Cladding | E134: Q2 2027 - Q1 2028 | F134: 2100 | G134: 95.45454545
D135: =$D$29 -> Fit-out, testing and commissioning | E135: Q4 2027 - Q3 2028 | F135: 2100 | G135: 95.45454545

Sheet Outputs for CLP
C2: CONSTRUCTION LOGISTICS PLANNING TOOL (OUTPUTS) | AE2: Sheet 1 of 2 | AN2: CONSTRUCTION LOGISTICS PLANNING TOOL (OUTPUTS) | BQ2: Sheet 2 of 2
C4: CONSTRUCTION PROGRAMME OVERVIEW
C7: Construction stage | W7: Start | AD7: End
C9: ='Data Input'!D24 -> Site setup and demolition | W9: ='Data Input'!E24 -> 2025-04-01 | AD9: ='Data Input'!F24 -> 2025-11-01
C10: ='Data Input'!D25 -> Basement excavation and piling | W10: ='Data Input'!E25 -> 2025-11-01 | AD10: ='Data Input'!F25 -> 2026-06-01
C11: ='Data Input'!D26 -> Sub-structure | W11: ='Data Input'!E26 -> 2026-04-01 | AD11: ='Data Input'!F26 -> 2027-03-01
C12: ='Data Input'!D27 -> Super-structure | W12: ='Data Input'!E27 -> 2027-02-01 | AD12: ='Data Input'!F27 -> 2027-10-01
C13: ='Data Input'!D28 -> Cladding | W13: ='Data Input'!E28 -> 2027-06-01 | AD13: ='Data Input'!F28 -> 2028-01-01
C14: ='Data Input'!D29 -> Fit-out, testing and commissioning | W14: ='Data Input'!E29 -> 2027-10-01 | AD14: ='Data Input'!F29 -> 2028-08-01
C35: NO. OF VEHICLES IN PEAK PHASE (EX. OTHER PHASES)
C38: Construction Stage | Q38: Period of stage | Y38: Peak no. of trips (monthly) | AE38: Peak no. of trips (daily)
C40: ='Data Input'!D24 -> Site setup and demolition | Q40: ='Data Input'!E121 -> Q2 2025 - Q4 2025 | Y40: ='Data Input'!F121 -> 880 | AE40: ='Data Input'!G121 -> 40
C41: ='Data Input'!D25 -> Basement excavation and piling | Q41: ='Data Input'!E122 -> Q4 2025 - Q2 2026 | Y41: ='Data Input'!F122 -> 990 | AE41: ='Data Input'!G122 -> 45
C42: ='Data Input'!D26 -> Sub-structure | Q42: ='Data Input'!E123 -> Q2 2026 - Q1 2027 | Y42: ='Data Input'!F123 -> 1540 | AE42: ='Data Input'!G123 -> 70
C43: ='Data Input'!D27 -> Super-structure | Q43: ='Data Input'!E124 -> Q1 2027 - Q4 2027 | Y43: ='Data Input'!F124 -> 1980 | AE43: ='Data Input'!G124 -> 90
C44: ='Data Input'!D28 -> Cladding | Q44: ='Data Input'!E125 -> Q2 2027 - Q1 2028 | Y44: ='Data Input'!F125 -> 1100 | AE44: ='Data Input'!G125 -> 50
C45: ='Data Input'!D29 -> Fit-out, testing and commissioning | Q45: ='Data Input'!E126 -> Q4 2027 - Q3 2028 | Y45: ='Data Input'!F126 -> 1870 | AE45: ='Data Input'!G126 -> 85
C46: Peak period of construction | Q46: ='Data Input'!E127 -> Q4 2027 - Q4 2027 | Y46: ='Data Input'!F127 -> 2100 | AE46: ='Data Input'!G127 -> 95.45454545
C48: NO. OF VEHICLES IN PEAK PHASE (INC. POSSIBLE OVERLAP OF SUBSEQUENT PHASES)
C51: Construction Stage | Q51: Period of stage | Y51: Peak no. of trips (monthly) | AE51: Peak no. of trips (daily)
C53: ='Data Input'!D24 -> Site setup and demolition | Q53: ='Data Input'!E130 -> Q2 2025 - Q4 2025 | Y53: ='Data Input'!F130 -> 1100 | AE53: ='Data Input'!G130 -> 50
C54: ='Data Input'!D25 -> Basement excavation and piling | Q54: ='Data Input'!E131 -> Q4 2025 - Q2 2026 | Y54: ='Data Input'!F131 -> 1100 | AE54: ='Data Input'!G131 -> 50
C55: ='Data Input'!D26 -> Sub-structure | Q55: ='Data Input'!E132 -> Q2 2026 - Q1 2027 | Y55: ='Data Input'!F132 -> 1540 | AE55: ='Data Input'!G132 -> 70
C56: ='Data Input'!D27 -> Super-structure | Q56: ='Data Input'!E133 -> Q1 2027 - Q4 2027 | Y56: ='Data Input'!F133 -> 2100 | AE56: ='Data Input'!G133 -> 95.45454545
C57: ='Data Input'!D28 -> Cladding | Q57: ='Data Input'!E134 -> Q2 2027 - Q1 2028 | Y57: ='Data Input'!F134 -> 2100 | AE57: ='Data Input'!G134 -> 95.45454545
C58: ='Data Input'!D29 -> Fit-out, testing and commissioning | Q58: ='Data Input'!E135 -> Q4 2027 - Q3 2028 | Y58: ='Data Input'!F135 -> 2100 | AE58: ='Data Input'!G135 -> 95.45454545
